{"text_format":"1","workbook":"xlsx","n_sheets":10,"sheets":["Skema 1","Skema 2","Skema 3","Skema 4","Skema 5","Skema 6","Skema 7","Rapport","Rapport SGH","Afstemning af ikke fordelte"],"not_rendered":{"charts":0,"images":0,"macros":1,"external_links":0,"defined_names":20,"comments":0,"pivot_tables":0},"unopened":[],"bounds":{"document_bytes":16777216,"sheet_cells":100000,"rows_first":2000,"rows_last":500,"rows_between":2000,"halvings":0,"cell_chars":16384,"cell_head_chars":4096},"cells_cut":0,"cells_raw":0,"read":"whole","date_system":"1900"}

{"sheet":"Skema 1","index":0,"n_rows":35,"n_cols":9,"rows_kept":35,"cut":false,"hidden":false,"merged":[[1,1,2,8]]}
["Region Syddanmark, psykiatriske sygehuse."]
[null,"Skema 1: Udgifter og indtægter på sygehusene/enhederne, eksklusiv omkostningssted 0001, Fælleskonto. (1.000 kr.)"]
[]
[]
["Sygehus",null,2023,2022,2021,2020,"Δ2022-2023","% afvigelse","Begrundelse"]
["Region Syddanmark, Voksen psykiatrien"]
["Region Syddanmark, Voksen psykiatrien","Hovedart 1: Lønninger",1482530,1437698,1384422,1316147,{"$f":"IF(ISERROR(C7- D7)=TRUE,\"\",C7 - D7)","v":44832},{"$f":"IF(ISERROR((((C7- D7)/D7)*100)=TRUE),\"\",IF((((C7- D7)/D7)*100)<-7,FIXED(((C7- D7)/D7)*100, 1,TRUE) &\"%\" & \"▼\",IF((((C7- D7)/D7)*100)>7,FIXED(((C7- D7)/D7)*100, 1,TRUE) &\"%\" &\"▲\",FIXED(((C7- D7)/D7)*100, 1,TRUE)&\"%\")))","v":"3,1%"}," "]
["Region Syddanmark, Voksen psykiatrien","Hovedart 2: Varekøb",60531,54040,55896,63230,6491,"12,0%▲","Øget udgiftsniveau i takt med flere ansatte"]
["Region Syddanmark, Voksen psykiatrien","Hovedart 4: Tjenesteydelser m.v. ",395269,387205,342913,330951,8064,"2,1%"]
["Region Syddanmark, Voksen psykiatrien","Hovedart 5: Tilskud og overførsler",20635,2625,5885,7043,18010,"686,1%▲"]
["Region Syddanmark, Voksen psykiatrien","Hovedart 6: Finansudgifter",null," ",null,0,"",""," "]
["Region Syddanmark, Voksen psykiatrien","Hovedart 7: Indtægter",-170161,-163959,-145080,-160791,-6202,"3,8%"]
["Region Syddanmark, Voksen psykiatrien","Hovedart 8: Finansindtægter",null,-12,null,null,12,"-100,0%▼"," "]
["Region Syddanmark, Voksen psykiatrien","Hovedart 9: Interne udgifter og indtægter",null,null,null,null,0,""]
["Region Syddanmark, Voksen psykiatrien","I alt",{"$f":"SUMIFS((C7:C14),(A7:A14),A15)","v":1788804},{"$f":"SUMIFS((D7:D14),(A7:A14),A15)","v":1717597},{"$f":"SUMIFS((E7:E14),(A7:A14),A15)","v":1644036},{"$f":"SUMIFS((F7:F14),(A7:A14),A15)","v":1556580},71207,"4,1%"," "]
["Region Syddanmark, Børn-unge psykiatrien",null,null,null,null,null,0,""]
["Region Syddanmark, Børn-unge psykiatrien","Hovedart 1: Lønninger",301393,300098,285087,270751,1295,"0,4%"," "]
["Region Syddanmark, Børn-unge psykiatrien","Hovedart 2: Varekøb",9774,8681,9560,11512,1093,"12,6%▲","Øget udgiftsniveau i takt med flere ansatte"]
["Region Syddanmark, Børn-unge psykiatrien","Hovedart 4: Tjenesteydelser m.v. ",71126,71482,92415,64432,-356,"-0,5%"," "]
["Region Syddanmark, Børn-unge psykiatrien","Hovedart 5: Tilskud og overførsler",4042,526,1172,1407,3516,"668,4%▲"]
["Region Syddanmark, Børn-unge psykiatrien","Hovedart 6: Finansudgifter",null," ",null,null,"",""," "]
["Region Syddanmark, Børn-unge psykiatrien","Hovedart 7: Indtægter",-38981,-26205,-54417,-34921,-12776,"48,8%▲"]
["Region Syddanmark, Børn-unge psykiatrien","Hovedart 8: Finansindtægter",null," ",-3,null,"",""," "]
["Region Syddanmark, Børn-unge psykiatrien","Hovedart 9: Interne udgifter og indtægter",null,null,null,null,0,""]
["Region Syddanmark, Børn-unge psykiatrien","I alt",{"$f":"SUMIFS((C7:C24),(A7:A24),A25)","v":347354},{"$f":"SUMIFS((D7:D24),(A7:A24),A25)","v":354582},{"$f":"SUMIFS((E7:E24),(A7:A24),A25)","v":333814},{"$f":"SUMIFS((F7:F24),(A7:A24),A25)","v":313181},-7228,"-2,0%"," "]
["Ikke fordelte udgifter i Region Syddanmark, psykiatri",null,null,null,null,null,0,""]
["Ikke fordelte udgifter i Region Syddanmark, psykiatri","Hovedart 1: Lønninger",9301,7890,7877,6573,1411,"17,9%▲","Nye indsatser"]
["Ikke fordelte udgifter i Region Syddanmark, psykiatri","Hovedart 2: Varekøb",393,237,262,183,156,"65,8%▲","Nye indsatser"]
["Ikke fordelte udgifter i Region Syddanmark, psykiatri","Hovedart 4: Tjenesteydelser m.v. ",1388,1128,1386,1270,260,"23,0%▲","Nye indsatser"]
["Ikke fordelte udgifter i Region Syddanmark, psykiatri","Hovedart 5: Tilskud og overførsler",null,null,null,null,0,""]
["Ikke fordelte udgifter i Region Syddanmark, psykiatri","Hovedart 6: Finansudgifter",null," ",null,null,"",""," "]
["Ikke fordelte udgifter i Region Syddanmark, psykiatri","Hovedart 7: Indtægter",-78,-12,-50,-32,-66,"550,0%▲","Nye indsatser"]
["Ikke fordelte udgifter i Region Syddanmark, psykiatri","Hovedart 8: Finansindtægter",null," ",null,null,"",""," "]
["Ikke fordelte udgifter i Region Syddanmark, psykiatri","Hovedart 9: Interne udgifter og indtægter",null,null,null,null,0,""]
["Ikke fordelte udgifter i Region Syddanmark, psykiatri","I alt",{"$f":"SUMIFS((C7:C34),(A7:A34),A35)","v":11004},{"$f":"SUMIFS((D7:D34),(A7:A34),A35)","v":9243},{"$f":"SUMIFS((E7:E34),(A7:A34),A35)","v":9475},{"$f":"SUMIFS((F7:F34),(A7:A34),A35)","v":7994},1761,"19,1%▲"]

{"sheet":"Skema 2","index":1,"n_rows":35,"n_cols":9,"rows_kept":35,"cut":false,"hidden":false,"merged":[[1,1,2,8]]}
["Region Syddanmark, psykiatriske sygehuse."]
[null,"Skema 2: Fællesudgifter og -indtægter vedrørende sygehusene.\n(1.000 kr.)"]
[]
[]
["Sygehus",null,2023,2022,2021,2020,"Δ2022-2023","% afvigelse","Begrundelse"]
["Region Syddanmark, Voksen psykiatrien"]
["Region Syddanmark, Voksen psykiatrien","Hovedart 1: Lønninger",7511,15704,12932,16590,{"$f":"IF(ISERROR(C7- D7)=TRUE,\"\",C7 - D7)","v":-8193},{"$f":"IF(ISERROR((((C7- D7)/D7)*100)=TRUE),\"\",IF((((C7- D7)/D7)*100)<-7,FIXED(((C7- D7)/D7)*100, 1,TRUE) &\"%\" & \"▼\",IF((((C7- D7)/D7)*100)>7,FIXED(((C7- D7)/D7)*100, 1,TRUE) &\"%\" &\"▲\",FIXED(((C7- D7)/D7)*100, 1,TRUE)&\"%\")))","v":"-52,2%▼"}]
["Region Syddanmark, Voksen psykiatrien","Hovedart 2: Varekøb",2908,-682,2450,4552,3590,"-526,4%▼"]
["Region Syddanmark, Voksen psykiatrien","Hovedart 4: Tjenesteydelser m.v. ",46991,37814,40907,33266,9177,"24,3%▲"]
["Region Syddanmark, Voksen psykiatrien","Hovedart 5: Tilskud og overførsler",null,null,null,null,0,""]
["Region Syddanmark, Voksen psykiatrien","Hovedart 6: Finansudgifter",null," ",null,null,"",""]
["Region Syddanmark, Voksen psykiatrien","Hovedart 7: Indtægter",-16181,-9876,-4117,-6693,-6305,"63,8%▲"]
["Region Syddanmark, Voksen psykiatrien","Hovedart 8: Finansindtægter",-52,-65,null,null,13,"-20,0%▼"]
["Region Syddanmark, Voksen psykiatrien","Hovedart 9: Interne udgifter og indtægter",null,null,null,null,0,""]
["Region Syddanmark, Voksen psykiatrien","I alt",{"$f":"SUMIFS((C7:C14),(A7:A14),A15)","v":41177},{"$f":"SUMIFS((D7:D14),(A7:A14),A15)","v":42895},{"$f":"SUMIFS((E7:E14),(A7:A14),A15)","v":52172},{"$f":"SUMIFS((F7:F14),(A7:A14),A15)","v":47715},-1718,"-4,0%"]
["Region Syddanmark, Børn-unge psykiatrien",null,null,null,null,null,0,""]
["Region Syddanmark, Børn-unge psykiatrien","Hovedart 1: Lønninger",1471,3148,2575,3315,-1677,"-53,3%▼"]
["Region Syddanmark, Børn-unge psykiatrien","Hovedart 2: Varekøb",570,-137,488,909,707,"-516,1%▼"]
["Region Syddanmark, Børn-unge psykiatrien","Hovedart 4: Tjenesteydelser m.v. ",9205,7582,8144,6647,1623,"21,4%▲"]
["Region Syddanmark, Børn-unge psykiatrien","Hovedart 5: Tilskud og overførsler",null,null,null,null,0,""]
["Region Syddanmark, Børn-unge psykiatrien","Hovedart 6: Finansudgifter",null," ",null,null,"",""]
["Region Syddanmark, Børn-unge psykiatrien","Hovedart 7: Indtægter",-3170,-1980,-820,-1337,-1190,"60,1%▲"]
["Region Syddanmark, Børn-unge psykiatrien","Hovedart 8: Finansindtægter",-10,-13,null,null,3,"-23,1%▼"]
["Region Syddanmark, Børn-unge psykiatrien","Hovedart 9: Interne udgifter og indtægter",null,null,null,null,0,""]
["Region Syddanmark, Børn-unge psykiatrien","I alt",{"$f":"SUMIFS((C7:C24),(A7:A24),A25)","v":8066},{"$f":"SUMIFS((D7:D24),(A7:A24),A25)","v":8600},{"$f":"SUMIFS((E7:E24),(A7:A24),A25)","v":10387},{"$f":"SUMIFS((F7:F24),(A7:A24),A25)","v":9534},-534,"-6,2%"]
["Ikke fordelte udgifter i Region Syddanmark, psykiatri",null,null,null,null,null,0,""]
["Ikke fordelte udgifter i Region Syddanmark, psykiatri","Hovedart 1: Lønninger",null,null,null,null,0,""]
["Ikke fordelte udgifter i Region Syddanmark, psykiatri","Hovedart 2: Varekøb",null,null,null,null,0,""]
["Ikke fordelte udgifter i Region Syddanmark, psykiatri","Hovedart 4: Tjenesteydelser m.v. ",14628,14262,14085,13889,366,"2,6%"]
["Ikke fordelte udgifter i Region Syddanmark, psykiatri","Hovedart 5: Tilskud og overførsler",null,null,null,null,0,""]
["Ikke fordelte udgifter i Region Syddanmark, psykiatri","Hovedart 6: Finansudgifter",null,null,null,null,0,""]
["Ikke fordelte udgifter i Region Syddanmark, psykiatri","Hovedart 7: Indtægter",null,null,null,null,0,""]
["Ikke fordelte udgifter i Region Syddanmark, psykiatri","Hovedart 8: Finansindtægter",null,null,null,null,0,""]
["Ikke fordelte udgifter i Region Syddanmark, psykiatri","Hovedart 9: Interne udgifter og indtægter",null,null,null,null,0,""]
["Ikke fordelte udgifter i Region Syddanmark, psykiatri","I alt",{"$f":"SUMIFS((C7:C34),(A7:A34),A35)","v":14628},{"$f":"SUMIFS((D7:D34),(A7:A34),A35)","v":14262},{"$f":"SUMIFS((E7:E34),(A7:A34),A35)","v":14085},{"$f":"SUMIFS((F7:F34),(A7:A34),A35)","v":13889},366,"2,6%"]

{"sheet":"Skema 3","index":2,"n_rows":26,"n_cols":9,"rows_kept":26,"cut":false,"hidden":false,"merged":[[1,1,2,8]]}
["Region Syddanmark, psykiatriske sygehuse."]
[null,"Skema 3:Regionale fællesudgifter og -indtægter. (1.000 kr.)"]
[]
[]
["Sygehus",null,2023,2022,2021,2020,"Δ2022-2023","% afvigelse","Begrundelse"]
["Region Syddanmark, Voksen psykiatrien"]
["Region Syddanmark, Voksen psykiatrien","1.70.50: Andel af fællesudgifter",33860,32054,28685,26605,{"$f":"IF(ISERROR(C7- D7)=TRUE,\"\",C7 - D7)","v":1806},{"$f":"IF(ISERROR((((C7- D7)/D7)*100)=TRUE),\"\",IF((((C7- D7)/D7)*100)<-7,FIXED(((C7- D7)/D7)*100, 1,TRUE) &\"%\" & \"▼\",IF((((C7- D7)/D7)*100)>7,FIXED(((C7- D7)/D7)*100, 1,TRUE) &\"%\" &\"▲\",FIXED(((C7- D7)/D7)*100, 1,TRUE)&\"%\")))","v":"5,6%"}]
["Region Syddanmark, Voksen psykiatrien","1.60.40: Andel af central administration af sundhed (til og med 2019)",8432,8316,8143,7163,116,"1,4%"]
["Region Syddanmark, Voksen psykiatrien","1.60.41: Andel af øvrige udgifter og indtægter",null,null,null,null,0,""]
["Region Syddanmark, Voksen psykiatrien","1.50.33: Andel af central administration af sundhed (ekskl. psykiatri)",null,null,null,null,0,""]
["Region Syddanmark, Voksen psykiatrien","1.50.35: Administration af det psykiatriske område (kun central del)",null,null,null,null,0,""]
["Region Syddanmark, Voksen psykiatrien","I alt",{"$f":"SUMIFS((C7:C11),(A7:A11),A12)","v":42292},{"$f":"SUMIFS((D7:D11),(A7:A11),A12)","v":40370},{"$f":"SUMIFS((E7:E11),(A7:A11),A12)","v":36828},{"$f":"SUMIFS((F7:F11),(A7:A11),A12)","v":33768},1922,"4,8%"]
["Region Syddanmark, Børn-unge psykiatrien",null,null,null,null,null,0,""]
["Region Syddanmark, Børn-unge psykiatrien","1.70.50: Andel af fællesudgifter",6633,6427,5711,5316,206,"3,2%"]
["Region Syddanmark, Børn-unge psykiatrien","1.60.40: Andel af central administration af sundhed (til og med 2019)",1662,1667,1621,1431,-5,"-0,3%"]
["Region Syddanmark, Børn-unge psykiatrien","1.60.41: Andel af øvrige udgifter og indtægter",null,null,null,null,0,""]
["Region Syddanmark, Børn-unge psykiatrien","1.50.33: Andel af central administration af sundhed (ekskl. psykiatri)",null,null,null,null,0,""]
["Region Syddanmark, Børn-unge psykiatrien","1.50.35: Administration af det psykiatriske område (kun central del)",null,null,null,null,0,""]
["Region Syddanmark, Børn-unge psykiatrien","I alt",{"$f":"SUMIFS((C7:C18),(A7:A18),A19)","v":8295},{"$f":"SUMIFS((D7:D18),(A7:A18),A19)","v":8094},{"$f":"SUMIFS((E7:E18),(A7:A18),A19)","v":7332},{"$f":"SUMIFS((F7:F18),(A7:A18),A19)","v":6747},201,"2,5%"]
["Ikke fordelte udgifter i Region Syddanmark, psykiatri",null,null,null,null,null,0,""]
["Ikke fordelte udgifter i Region Syddanmark, psykiatri","1.70.50: Andel af fællesudgifter",null,null,null,null,0,""]
["Ikke fordelte udgifter i Region Syddanmark, psykiatri","1.60.40: Andel af central administration af sundhed (til og med 2019)",null,null,null,null,0,""]
["Ikke fordelte udgifter i Region Syddanmark, psykiatri","1.60.41: Andel af øvrige udgifter og indtægter",null,null,null,null,0,""]
["Ikke fordelte udgifter i Region Syddanmark, psykiatri","1.50.33: Andel af central administration af sundhed (ekskl. psykiatri)",null,null,null,null,0,""]
["Ikke fordelte udgifter i Region Syddanmark, psykiatri","1.50.35: Administration af det psykiatriske område (kun central del)",null,null,null,null,0,""]
["Ikke fordelte udgifter i Region Syddanmark, psykiatri","I alt",{"$f":"SUMIFS((C7:C25),(A7:A25),A26)","v":0},{"$f":"SUMIFS((D7:D25),(A7:A25),A26)","v":0},{"$f":"SUMIFS((E7:E25),(A7:A25),A26)","v":0},{"$f":"SUMIFS((F7:F25),(A7:A25),A26)","v":0},0,""]

{"sheet":"Skema 4","index":3,"n_rows":20,"n_cols":9,"rows_kept":20,"cut":false,"hidden":false,"merged":[[1,1,2,8]]}
["Region Syddanmark, psykiatriske sygehuse."]
[null,"Skema 4: Udgifter og indtægter til og fra psykiatriske afdelinger konteret på somatiske sygehuse. (1.000 kr.)"]
[]
[]
["Sygehus",null,2023,2022,2021,2020,"Δ2022-2023","% afvigelse","Begrundelse"]
["Region Syddanmark, Voksen psykiatrien"]
["Region Syddanmark, Voksen psykiatrien","Korrektion",null,null,null,null,{"$f":"IF(ISERROR(C7- D7)=TRUE,\"\",C7 - D7)","v":0},{"$f":"IF(ISERROR((((C7- D7)/D7)*100)=TRUE),\"\",IF((((C7- D7)/D7)*100)<-7,FIXED(((C7- D7)/D7)*100, 1,TRUE) &\"%\" & \"▼\",IF((((C7- D7)/D7)*100)>7,FIXED(((C7- D7)/D7)*100, 1,TRUE) &\"%\" &\"▲\",FIXED(((C7- D7)/D7)*100, 1,TRUE)&\"%\")))","v":""}]
["Region Syddanmark, Voksen psykiatrien","Lønudg. på psyk. afd.,somatiske sygehuse",null,null,null,null,0,""]
["Region Syddanmark, Voksen psykiatrien","Øvrige udg. til psyk. afd.,somatiske sygehuse",null,null,null,null,0,""]
["Region Syddanmark, Voksen psykiatrien","I alt",{"$f":"SUMIFS((C7:C9),(A7:A9),A10)","v":0},{"$f":"SUMIFS((D7:D9),(A7:A9),A10)","v":0},{"$f":"SUMIFS((E7:E9),(A7:A9),A10)","v":0},{"$f":"SUMIFS((F7:F9),(A7:A9),A10)","v":0},0,""]
["Region Syddanmark, Børn-unge psykiatrien",null,null,null,null,null,0,""]
["Region Syddanmark, Børn-unge psykiatrien","Korrektion",null,null,null,null,0,""]
["Region Syddanmark, Børn-unge psykiatrien","Lønudg. på psyk. afd.,somatiske sygehuse",null,null,null,null,0,""]
["Region Syddanmark, Børn-unge psykiatrien","Øvrige udg. til psyk. afd.,somatiske sygehuse",null,null,null,null,0,""]
["Region Syddanmark, Børn-unge psykiatrien","I alt",{"$f":"SUMIFS((C7:C14),(A7:A14),A15)","v":0},{"$f":"SUMIFS((D7:D14),(A7:A14),A15)","v":0},{"$f":"SUMIFS((E7:E14),(A7:A14),A15)","v":0},{"$f":"SUMIFS((F7:F14),(A7:A14),A15)","v":0},0,""]
["Ikke fordelte udgifter i Region Syddanmark, psykiatri",null,null,null,null,null,0,""]
["Ikke fordelte udgifter i Region Syddanmark, psykiatri","Korrektion",null,null,null,null,0,""]
["Ikke fordelte udgifter i Region Syddanmark, psykiatri","Lønudg. på psyk. afd.,somatiske sygehuse",null,null,null,null,0,""]
["Ikke fordelte udgifter i Region Syddanmark, psykiatri","Øvrige udg. til psyk. afd.,somatiske sygehuse",null,null,null,null,0,""]
["Ikke fordelte udgifter i Region Syddanmark, psykiatri","I alt",{"$f":"SUMIFS((C7:C19),(A7:A19),A20)","v":0},{"$f":"SUMIFS((D7:D19),(A7:A19),A20)","v":0},{"$f":"SUMIFS((E7:E19),(A7:A19),A20)","v":0},{"$f":"SUMIFS((F7:F19),(A7:A19),A20)","v":0},0,""]

{"sheet":"Skema 5","index":4,"n_rows":20,"n_cols":9,"rows_kept":20,"cut":false,"hidden":false,"merged":[[1,1,2,8]]}
["Region Syddanmark, psykiatriske sygehuse."]
[null,"Skema 5: Leasing- og huslejeudgifter. (1.000 kr.)"]
[]
[]
["Sygehus",null,2023,2022,2021,2020,"Δ2022-2023","% afvigelse","Begrundelse"]
["Region Syddanmark, Voksen psykiatrien"]
["Region Syddanmark, Voksen psykiatrien","Andre udgifter",null,null,null,null,{"$f":"IF(ISERROR(C7- D7)=TRUE,\"\",C7 - D7)","v":0},{"$f":"IF(ISERROR((((C7- D7)/D7)*100)=TRUE),\"\",IF((((C7- D7)/D7)*100)<-7,FIXED(((C7- D7)/D7)*100, 1,TRUE) &\"%\" & \"▼\",IF((((C7- D7)/D7)*100)>7,FIXED(((C7- D7)/D7)*100, 1,TRUE) &\"%\" &\"▲\",FIXED(((C7- D7)/D7)*100, 1,TRUE)&\"%\")))","v":""}]
["Region Syddanmark, Voksen psykiatrien","Leasing- og lejeudgifter",null,0,53,56,0,"","Ophør af aftaler"]
["Region Syddanmark, Voksen psykiatrien","Huslejeudgifter",34942,29846,34368,34194,5096,"17,1%▲","Lokaleændringer"]
["Region Syddanmark, Voksen psykiatrien","I alt",{"$f":"SUMIFS((C7:C9),(A7:A9),A10)","v":34942},{"$f":"SUMIFS((D7:D9),(A7:A9),A10)","v":29846},{"$f":"SUMIFS((E7:E9),(A7:A9),A10)","v":34421},{"$f":"SUMIFS((F7:F9),(A7:A9),A10)","v":34250},5096,"17,1%▲"]
["Region Syddanmark Børn-unge psykiatrien",null,null,null,null,null,0,""]
["Region Syddanmark Børn-unge psykiatrien","Andre udgifter",null,null,null,null,0,""]
["Region Syddanmark Børn-unge psykiatrien","Leasing- og lejeudgifter",112,125,109,100,-13,"-10,4%▼","Ophør af aftaler"]
["Region Syddanmark Børn-unge psykiatrien","Huslejeudgifter",6852,6020,6832,6832,832,"13,8%▲","Lokaleændringer"]
["Region Syddanmark Børn-unge psykiatrien","I alt",{"$f":"SUMIFS((C7:C14),(A7:A14),A15)","v":6964},{"$f":"SUMIFS((D7:D14),(A7:A14),A15)","v":6145},{"$f":"SUMIFS((E7:E14),(A7:A14),A15)","v":6941},{"$f":"SUMIFS((F7:F14),(A7:A14),A15)","v":6932},819,"13,3%▲"]
["Ikke fordelte udgifter i Region Syddanmark, psykiatri",null,null,null,null,null,0,""]
["Ikke fordelte udgifter i Region Syddanmark, psykiatri","Andre udgifter",null,null,null,null,0,""]
["Ikke fordelte udgifter i Region Syddanmark, psykiatri","Leasing- og lejeudgifter",null,null,null,null,0,""]
["Ikke fordelte udgifter i Region Syddanmark, psykiatri","Huslejeudgifter",null,null,null,null,0,""]
["Ikke fordelte udgifter i Region Syddanmark, psykiatri","I alt",{"$f":"SUMIFS((C7:C19),(A7:A19),A20)","v":0},{"$f":"SUMIFS((D7:D19),(A7:A19),A20)","v":0},{"$f":"SUMIFS((E7:E19),(A7:A19),A20)","v":0},{"$f":"SUMIFS((F7:F19),(A7:A19),A20)","v":0},0,""]

{"sheet":"Skema 6","index":5,"n_rows":155,"n_cols":9,"rows_kept":155,"cut":false,"hidden":false,"merged":[[1,1,2,8]]}
["Region Syddanmark, psykiatriske sygehuse."]
[null,"Skema 6: Udgifter til andet end patientbehandling. (1.000 kr.)"]
[]
[]
["Sygehus",null,2023,2022,2021,2020,"Δ2022-2023","% afvigelse","Begrundelse"]
["Region Syddanmark, Voksen psykiatrien"]
["Region Syddanmark, Voksen psykiatrien","Skema 6.1: Center for voldsramte (Bispebjerg)",null,null,null,null,{"$f":"IF(ISERROR(C7- D7)=TRUE,\"\",C7 - D7)","v":0},{"$f":"IF(ISERROR((((C7- D7)/D7)*100)=TRUE),\"\",IF((((C7- D7)/D7)*100)<-7,FIXED(((C7- D7)/D7)*100, 1,TRUE) &\"%\" & \"▼\",IF((((C7- D7)/D7)*100)>7,FIXED(((C7- D7)/D7)*100, 1,TRUE) &\"%\" &\"▲\",FIXED(((C7- D7)/D7)*100, 1,TRUE)&\"%\")))","v":""}]
["Region Syddanmark, Voksen psykiatrien","Skema 6.2: Ventilatørbistand i hjemmet, respiratorpatienter",null,null,null,null,0,""]
["Region Syddanmark, Voksen psykiatrien","Skema 6.3: Blodprøvetagning i eget hjem",null,null,null,null,0,""]
["Region Syddanmark, Voksen psykiatrien","Skema 6.4: Psykinfo + pårørende",null,null,null,null,0,""]
["Region Syddanmark, Voksen psykiatrien","Skema 6.5: Leveret udstyr til patienter i eget hjem, ilt og sonderemedier",null,null,null,null,0,""]
["Region Syddanmark, Voksen psykiatrien","Skema 6.6: Montebello (Nordsjællands Hospitaler)",null,null,null,null,0,""]
["Region Syddanmark, Voksen psykiatrien","Skema 6.7: Satspulje korrektioner mellem år",null,null,null,null,0,""]
["Region Syddanmark, Voksen psykiatrien","Skema 6.8: Klinisk farmakologisk rådgivning af praksissektoren",null,null,null,null,0,""]
["Region Syddanmark, Voksen psykiatrien","Skema 6.9: Tandregulering ifm. operation",null,null,null,null,0,""]
["Region Syddanmark, Voksen psykiatrien","Skema 6.10: Giftlinjen",null,null,null,null,0,""]
["Region Syddanmark, Voksen psykiatrien","Skema 6.11: Tjenestemandspensioner",null,null,null,null,0,""]
["Region Syddanmark, Voksen psykiatrien","Skema 6.12: Art 4.6 Betalinger til staten",null,null,null,null,0,""]
["Region Syddanmark, Voksen psykiatrien","Skema 6.13: Art 4.7 Betalinger til kommuner",null,null,null,null,0,""]
["Region Syddanmark, Voksen psykiatrien","Skema 6.14: Art 4.8 Betalinger til andre regioner",4456,34362,37260,33002,-29906,"-87,0%▼","Sikringen flyttet til 6.46"]
["Region Syddanmark, Voksen psykiatrien","Skema 6.15: Art 7.6 Betalinger fra staten",null," ",null,null,"",""]
["Region Syddanmark, Voksen psykiatrien","Skema 6.16: Art 7.7 Betalinger fra kommuner",-28831,-5255,-3730,-6749,-23576,"448,6%▲","Inkl Særlige Pladser"]
["Region Syddanmark, Voksen psykiatrien","Skema 6.17: Art 7.8 Betalinger fra andre regioner",-13616,-15204,-10052,-10340,1588,"-10,4%▼"]
["Region Syddanmark, Voksen psykiatrien","Skema 6.18: Betalinger til selvejende, private og udenlandske sygehuse",null,null,null,null,0,""]
["Region Syddanmark, Voksen psykiatrien","Skema 6.19: Dækningsafgift/ejendomsskat",2518,2501,2468,2422,17,"0,7%"]
["Region Syddanmark, Voksen psykiatrien","Skema 6.20: Forsikringer/erstatninger",7368,7018,6995,8245,350,"5,0%"]
["Region Syddanmark, Voksen psykiatrien","Skema 6.21: Vederlagsfri Lab. –ydelser og andre ydelser til praksissektoren",null," ",null,null,"",""]
["Region Syddanmark, Voksen psykiatrien","Skema 6.22: Patienttransport",2160,2036,2067,1424,124,"6,1%"]
["Region Syddanmark, Voksen psykiatrien","Skema 6.23: Serviceydelser til/fra andre institutioner eller sygehuse udenfor regionen",null," ",null,null,"",""]
["Region Syddanmark, Voksen psykiatrien","Skema 6.24: Udgifter til eksternt finansierede forskning",5888,null,-8,-55,5888,""]
["Region Syddanmark, Voksen psykiatrien","Skema 6.25: Forebyggelse rettet mod praksissektoren og kommuner",null," ",null,null,"",""]
["Region Syddanmark, Voksen psykiatrien","Skema 6.26: Praksisreservelæger",null,null,null,null,0,""]
["Region Syddanmark, Voksen psykiatrien","Skema 6.27: Præhospital",null," ",null,null,"",""]
["Region Syddanmark, Voksen psykiatrien","Skema 6.28: Udgifter til Danske Regioner (Kontigent, MedCom, Fællesproj.)",null,null,null,null,0,""]
["Region Syddanmark, Voksen psykiatrien","Skema 6.29: Hospice",null," ",null,null,"",""]
["Region Syddanmark, Voksen psykiatrien","Skema 6.30: Konsulenter(Praksis)",745,565,418,424,180,"31,9%▲","Flere ansatte end i 2022"]
["Region Syddanmark, Voksen psykiatrien","Skema 6.31: Videnskabsetisk Komité",null," ",null,null,"",""]
["Region Syddanmark, Voksen psykiatrien","Skema 6.32: Tolkebistand",121,167,151,455,-46,"-27,5%▼","Faldende brug af enkelstående tolke-ydelser"]
["Region Syddanmark, Voksen psykiatrien","Skema 6.33: Dansk Center for Partikelterapi",null," ",null,null,{"$f":"IF(ISERROR(C39- D39)=TRUE,\"\",C39 - D39)","v":""},{"$f":"IF(ISERROR((((C39- D39)/D39)*100)=TRUE),\"\",IF((((C39- D39)/D39)*100)<-7,FIXED(((C39- D39)/D39)*100, 1,TRUE) &\"%\" & \"▼\",IF((((C39- D39)/D39)*100)>7,FIXED(((C39- D39)/D39)*100, 1,TRUE) &\"%\" &\"▲\",FIXED(((C39- D39)/D39)*100, 1,TRUE)&\"%\")))","v":""}]
["Region Syddanmark, Voksen psykiatrien","Skema 6.34: Politisk organisation – overførte udgifter fra funktion 4.10.01, 4.10.02 og 4.10.04",null,null,null,null,0,""]
["Region Syddanmark, Voksen psykiatrien","Skema 6.35: Øvrige udgifter, Region Sjælland",null," ",null,null,"",""]
["Region Syddanmark, Voksen psykiatrien","Skema 6.36: Sundhedsydelser ifm. specialsektor",null,null,null,null,0,""]
["Region Syddanmark, Voksen psykiatrien","Skema 6.37: Udgifter til primær sundhed fra skema 2",null," ",null,null,"",""]
["Region Syddanmark, Voksen psykiatrien","Skema 6.38: Udgifter til primær sundhed fra skema 3",null,null,null,null,0,""]
["Region Syddanmark, Voksen psykiatrien","Skema 6.39: Særlige udgifter ifm. COVID-19",null," ",null,null,"",""]
["Region Syddanmark, Voksen psykiatrien","Skema 6.40: Udleveret udstyr/tilbehør ifm. cochlear implantater",null,null,null,null,0,""]
["Region Syddanmark, Voksen psykiatrien","Skema 6.41: Luxturna-behandling, Rigshospitalet",null," ",null,null,"",""]
["Region Syddanmark, Voksen psykiatrien","Skema 6.42: Udleveret medicin",7702,8302,7670,null,-600,"-7,2%▼","Faldende udlevering + priser"]
["Region Syddanmark, Voksen psykiatrien","Skema 6.43: Udgifter ifm. sundhedsklynger",null,null,null,null,0,""]
["Region Syddanmark, Voksen psykiatrien","Skema 6.44: Ukrainske patienter under særlov eller asyl",null,null,null,null,0,""]
["Region Syddanmark, Voksen psykiatrien","Skema 6.45: Udgifter ifm. de særlige pladser i psykiatrien",42489,null,null,null,42489,""]
["Region Syddanmark, Voksen psykiatrien","Skema 6.46: Sikringsafdelingen, Region Sjælland",18781,null,null,null,18781,""]
["Region Syddanmark, Voksen psykiatrien","Skema 6.47: Øvrige (Kan kun benyttes efter aftale med Sundhedsdatastyrelsen)",null,null,null,null,0,""]
["Region Syddanmark, Voksen psykiatrien","Lukkede poster (må kun bruges af Sundhedsdatastyrelsen)",null,null,null,null,0,""]
["Region Syddanmark, Voksen psykiatrien","I alt",{"$f":"SUMIFS((C7:C54),(A7:A54),A55)","v":49781},{"$f":"SUMIFS((D7:D54),(A7:A54),A55)","v":34492},{"$f":"SUMIFS((E7:E54),(A7:A54),A55)","v":43239},{"$f":"SUMIFS((F7:F54),(A7:A54),A55)","v":28828},15289,"44,3%▲"]
["Region Syddanmark, Børn-unge psykiatrien",null,null,null,null,null,0,""]
["Region Syddanmark, Børn-unge psykiatrien","Skema 6.1: Center for voldsramte (Bispebjerg)",null,null,null,null,0,""]
["Region Syddanmark, Børn-unge psykiatrien","Skema 6.2: Ventilatørbistand i hjemmet, respiratorpatienter",null,null,null,null,0,""]
["Region Syddanmark, Børn-unge psykiatrien","Skema 6.3: Blodprøvetagning i eget hjem",null,null,null,null,0,""]
["Region Syddanmark, Børn-unge psykiatrien","Skema 6.4: Psykinfo + pårørende",null,null,null,null,0,""]
["Region Syddanmark, Børn-unge psykiatrien","Skema 6.5: Leveret udstyr til patienter i eget hjem, ilt og sonderemedier",null,null,null,null,0,""]
["Region Syddanmark, Børn-unge psykiatrien","Skema 6.6: Montebello (Nordsjællands Hospitaler)",null,null,null,null,0,""]
["Region Syddanmark, Børn-unge psykiatrien","Skema 6.7: Satspulje korrektioner mellem år",null,null,null,null,0,""]
["Region Syddanmark, Børn-unge psykiatrien","Skema 6.8: Klinisk farmakologisk rådgivning af praksissektoren",null,null,null,null,0,""]
["Region Syddanmark, Børn-unge psykiatrien","Skema 6.9: Tandregulering ifm. operation",null,null,null,null,0,""]
["Region Syddanmark, Børn-unge psykiatrien","Skema 6.10: Giftlinjen",null,null,null,null,0,""]
["Region Syddanmark, Børn-unge psykiatrien","Skema 6.11: Tjenestemandspensioner",null,null,null,null,0,""]
["Region Syddanmark, Børn-unge psykiatrien","Skema 6.12: Art 4.6 Betalinger til staten",null,null,null,null,0,""]
["Region Syddanmark, Børn-unge psykiatrien","Skema 6.13: Art 4.7 Betalinger til kommuner",null,null,null,null,0,""]
["Region Syddanmark, Børn-unge psykiatrien","Skema 6.14: Art 4.8 Betalinger til andre regioner",873,2737,3289,2082,-1864,"-68,1%▼"]
["Region Syddanmark, Børn-unge psykiatrien","Skema 6.15: Art 7.6 Betalinger fra staten",null," ",null,null,{"$f":"IF(ISERROR(C71- D71)=TRUE,\"\",C71 - D71)","v":""},{"$f":"IF(ISERROR((((C71- D71)/D71)*100)=TRUE),\"\",IF((((C71- D71)/D71)*100)<-7,FIXED(((C71- D71)/D71)*100, 1,TRUE) &\"%\" & \"▼\",IF((((C71- D71)/D71)*100)>7,FIXED(((C71- D71)/D71)*100, 1,TRUE) &\"%\" &\"▲\",FIXED(((C71- D71)/D71)*100, 1,TRUE)&\"%\")))","v":""}]
["Region Syddanmark, Børn-unge psykiatrien","Skema 6.16: Art 7.7 Betalinger fra kommuner",-5648,-1054,-743,-1349,-4594,"435,9%▲","Inkl Særlige Pladser"]
["Region Syddanmark, Børn-unge psykiatrien","Skema 6.17: Art 7.8 Betalinger fra andre regioner",-2667,-3048,-2001,-2066,381,"-12,5%▼"]
["Region Syddanmark, Børn-unge psykiatrien","Skema 6.18: Betalinger til selvejende, private og udenlandske sygehuse",null,null,null,null,0,""]
["Region Syddanmark, Børn-unge psykiatrien","Skema 6.19: Dækningsafgift/ejendomsskat",493,502,491,461,-9,"-1,8%"]
["Region Syddanmark, Børn-unge psykiatrien","Skema 6.20: Forsikringer/erstatninger",1439,1408,1393,1648,31,"2,2%"]
["Region Syddanmark, Børn-unge psykiatrien","Skema 6.21: Vederlagsfri Lab. –ydelser og andre ydelser til praksissektoren",null," ",null,null,"",""]
["Region Syddanmark, Børn-unge psykiatrien","Skema 6.22: Patienttransport",423,408,411,285,15,"3,7%"]
["Region Syddanmark, Børn-unge psykiatrien","Skema 6.23: Serviceydelser til/fra andre institutioner eller sygehuse udenfor regionen",null," ",null,null,"",""]
["Region Syddanmark, Børn-unge psykiatrien","Skema 6.24: Udgifter til eksternt finansierede forskning",-5855,-18,-66,null,-5837,"32427,8%▲","Flere projekter, herunder større enkeltprojekter"]
["Region Syddanmark, Børn-unge psykiatrien","Skema 6.25: Forebyggelse rettet mod praksissektoren og kommuner",null," ",null,null,"",""]
["Region Syddanmark, Børn-unge psykiatrien","Skema 6.26: Praksisreservelæger",null,null,null,null,0,""]
["Region Syddanmark, Børn-unge psykiatrien","Skema 6.27: Præhospital",null," ",null,null,"",""," "]
["Region Syddanmark, Børn-unge psykiatrien","Skema 6.28: Udgifter til Danske Regioner (Kontigent, MedCom, Fællesproj.)",null,null,null,null,0,""]
["Region Syddanmark, Børn-unge psykiatrien","Skema 6.29: Hospice",null," ",null,null,"",""," "]
["Region Syddanmark, Børn-unge psykiatrien","Skema 6.30: Konsulenter(Praksis)",146,113,83,85,33,"29,2%▲","Flere ansatte end i 2022"]
["Region Syddanmark, Børn-unge psykiatrien","Skema 6.31: Videnskabsetisk Komité",null," ",null,null,"",""]
["Region Syddanmark, Børn-unge psykiatrien","Skema 6.32: Tolkebistand",4,16,69,56,-12,"-75,0%▼","Faldende brug af enkelstående tolke-ydelser"]
["Region Syddanmark, Børn-unge psykiatrien","Skema 6.33: Dansk Center for Partikelterapi",null," ",null,null,"",""]
["Region Syddanmark, Børn-unge psykiatrien","Skema 6.34: Politisk organisation – overførte udgifter fra funktion 4.10.01, 4.10.02 og 4.10.04",null,null,null,null,0,""]
["Region Syddanmark, Børn-unge psykiatrien","Skema 6.35: Øvrige udgifter, Region Sjælland",null," ",null,null,"",""]
["Region Syddanmark, Børn-unge psykiatrien","Skema 6.36: Sundhedsydelser ifm. specialsektor",null,null,null,null,0,""]
["Region Syddanmark, Børn-unge psykiatrien","Skema 6.37: Udgifter til primær sundhed fra skema 2",null," ",null,null,"",""]
["Region Syddanmark, Børn-unge psykiatrien","Skema 6.38: Udgifter til primær sundhed fra skema 3",null,null,null,null,0,""]
["Region Syddanmark, Børn-unge psykiatrien","Skema 6.39: Særlige udgifter ifm. COVID-19",null," ",null,null,"",""]
["Region Syddanmark, Børn-unge psykiatrien","Skema 6.40: Udleveret udstyr/tilbehør ifm. cochlear implantater",null,null,null,null,0,""]
["Region Syddanmark, Børn-unge psykiatrien","Skema 6.41: Luxturna-behandling, Rigshospitalet",null," ",null,null,"",""]
["Region Syddanmark, Børn-unge psykiatrien","Skema 6.42: Udleveret medicin",1509,1418,1298,null,91,"6,4%"]
["Region Syddanmark, Børn-unge psykiatrien","Skema 6.43: Udgifter ifm. sundhedsklynger",null,null,null,null,0,""]
["Region Syddanmark, Børn-unge psykiatrien","Skema 6.44: Ukrainske patienter under særlov eller asyl",null,null,null,null,0,""]
["Region Syddanmark, Børn-unge psykiatrien","Skema 6.45: Udgifter ifm. de særlige pladser i psykiatrien",909,null,null,null,909,""]
["Region Syddanmark, Børn-unge psykiatrien","Skema 6.46: Sikringsafdelingen, Region Sjælland",3679,null,null,null,3679,""]
["Region Syddanmark, Børn-unge psykiatrien","Skema 6.47: Øvrige (Kan kun benyttes efter aftale med Sundhedsdatastyrelsen)",null,null,null,null,{"$f":"IF(ISERROR(C103- D103)=TRUE,\"\",C103 - D103)","v":0},{"$f":"IF(ISERROR((((C103- D103)/D103)*100)=TRUE),\"\",IF((((C103- D103)/D103)*100)<-7,FIXED(((C103- D103)/D103)*100, 1,TRUE) &\"%\" & \"▼\",IF((((C103- D103)/D103)*100)>7,FIXED(((C103- D103)/D103)*100, 1,TRUE) &\"%\" &\"▲\",FIXED(((C103- D103)/D103)*100, 1,TRUE)&\"%\")))","v":""}]
["Region Syddanmark, Børn-unge psykiatrien","Lukkede poster (må kun bruges af Sundhedsdatastyrelsen)",null,null,null,null,0,""]
["Region Syddanmark, Børn-unge psykiatrien","I alt",{"$f":"SUMIFS((C7:C104),(A7:A104),A105)","v":-4695},{"$f":"SUMIFS((D7:D104),(A7:A104),A105)","v":2482},{"$f":"SUMIFS((E7:E104),(A7:A104),A105)","v":4224},{"$f":"SUMIFS((F7:F104),(A7:A104),A105)","v":1202},-7177,"-289,2%▼"]
["Ikke fordelte udgifter i Region Syddanmark, psykiatri",null,null,null,null,null,0,""]
["Ikke fordelte udgifter i Region Syddanmark, psykiatri","Skema 6.1: Center for voldsramte (Bispebjerg)",null,null,null,null,0,""]
["Ikke fordelte udgifter i Region Syddanmark, psykiatri","Skema 6.2: Ventilatørbistand i hjemmet, respiratorpatienter",null,null,null,null,0,""]
["Ikke fordelte udgifter i Region Syddanmark, psykiatri","Skema 6.3: Blodprøvetagning i eget hjem",null,null,null,null,0,""]
["Ikke fordelte udgifter i Region Syddanmark, psykiatri","Skema 6.4: Psykinfo + pårørende",11004,9243,9475,7994,1761,"19,1%▲","Nye indsatser"]
["Ikke fordelte udgifter i Region Syddanmark, psykiatri","Skema 6.5: Leveret udstyr til patienter i eget hjem, ilt og sonderemedier",null," ",null,null,"",""]
["Ikke fordelte udgifter i Region Syddanmark, psykiatri","Skema 6.6: Montebello (Nordsjællands Hospitaler)",null,null,null,null,0,""]
["Ikke fordelte udgifter i Region Syddanmark, psykiatri","Skema 6.7: Satspulje korrektioner mellem år",null," ",null,null,"",""]
["Ikke fordelte udgifter i Region Syddanmark, psykiatri","Skema 6.8: Klinisk farmakologisk rådgivning af praksissektoren",null,null,null,null,0,""]
["Ikke fordelte udgifter i Region Syddanmark, psykiatri","Skema 6.9: Tandregulering ifm. operation",null," ",null,null,"",""]
["Ikke fordelte udgifter i Region Syddanmark, psykiatri","Skema 6.10: Giftlinjen",null,null,null,null,0,""]
["Ikke fordelte udgifter i Region Syddanmark, psykiatri","Skema 6.11: Tjenestemandspensioner",null," ",null,null,"",""]
["Ikke fordelte udgifter i Region Syddanmark, psykiatri","Skema 6.12: Art 4.6 Betalinger til staten",null,null,null,null,0,""]
["Ikke fordelte udgifter i Region Syddanmark, psykiatri","Skema 6.13: Art 4.7 Betalinger til kommuner",null," ",null,null,"",""]
["Ikke fordelte udgifter i Region Syddanmark, psykiatri","Skema 6.14: Art 4.8 Betalinger til andre regioner",null,null,null,null,0,""]
["Ikke fordelte udgifter i Region Syddanmark, psykiatri","Skema 6.15: Art 7.6 Betalinger fra staten",null," ",null,null,"",""]
["Ikke fordelte udgifter i Region Syddanmark, psykiatri","Skema 6.16: Art 7.7 Betalinger fra kommuner",null,null,null,null,0,""]
["Ikke fordelte udgifter i Region Syddanmark, psykiatri","Skema 6.17: Art 7.8 Betalinger fra andre regioner",null," ",null,null,"",""]
["Ikke fordelte udgifter i Region Syddanmark, psykiatri","Skema 6.18: Betalinger til selvejende, private og udenlandske sygehuse",14628,14262,14085,13889,366,"2,6%"]
["Ikke fordelte udgifter i Region Syddanmark, psykiatri","Skema 6.19: Dækningsafgift/ejendomsskat",null,null,null,null,0,""]
["Ikke fordelte udgifter i Region Syddanmark, psykiatri","Skema 6.20: Forsikringer/erstatninger",null,null,null,null,0,""]
["Ikke fordelte udgifter i Region Syddanmark, psykiatri","Skema 6.21: Vederlagsfri Lab. –ydelser og andre ydelser til praksissektoren",null,null,null,null,0,""]
["Ikke fordelte udgifter i Region Syddanmark, psykiatri","Skema 6.22: Patienttransport",null,null,null,null,0,""]
["Ikke fordelte udgifter i Region Syddanmark, psykiatri","Skema 6.23: Serviceydelser til/fra andre institutioner eller sygehuse udenfor regionen",null,null,null,null,0,""]
["Ikke fordelte udgifter i Region Syddanmark, psykiatri","Skema 6.24: Udgifter til eksternt finansierede forskning",null,null,null,null,0,""]
["Ikke fordelte udgifter i Region Syddanmark, psykiatri","Skema 6.25: Forebyggelse rettet mod praksissektoren og kommuner",null,null,null,null,0,""]
["Ikke fordelte udgifter i Region Syddanmark, psykiatri","Skema 6.26: Praksisreservelæger",null,null,null,null,0,""]
["Ikke fordelte udgifter i Region Syddanmark, psykiatri","Skema 6.27: Præhospital",null,null,null,null,0,""]
["Ikke fordelte udgifter i Region Syddanmark, psykiatri","Skema 6.28: Udgifter til Danske Regioner (Kontigent, MedCom, Fællesproj.)",null,null,null,null,0,""]
["Ikke fordelte udgifter i Region Syddanmark, psykiatri","Skema 6.29: Hospice",null,null,null,null,{"$f":"IF(ISERROR(C135- D135)=TRUE,\"\",C135 - D135)","v":0},{"$f":"IF(ISERROR((((C135- D135)/D135)*100)=TRUE),\"\",IF((((C135- D135)/D135)*100)<-7,FIXED(((C135- D135)/D135)*100, 1,TRUE) &\"%\" & \"▼\",IF((((C135- D135)/D135)*100)>7,FIXED(((C135- D135)/D135)*100, 1,TRUE) &\"%\" &\"▲\",FIXED(((C135- D135)/D135)*100, 1,TRUE)&\"%\")))","v":""}]
["Ikke fordelte udgifter i Region Syddanmark, psykiatri","Skema 6.30: Konsulenter(Praksis)",null,null,null,null,0,""]
["Ikke fordelte udgifter i Region Syddanmark, psykiatri","Skema 6.31: Videnskabsetisk Komité",null,null,null,null,0,""]
["Ikke fordelte udgifter i Region Syddanmark, psykiatri","Skema 6.32: Tolkebistand",null,null,null,null,0,""]
["Ikke fordelte udgifter i Region Syddanmark, psykiatri","Skema 6.33: Dansk Center for Partikelterapi",null,null,null,null,0,""]
["Ikke fordelte udgifter i Region Syddanmark, psykiatri","Skema 6.34: Politisk organisation – overførte udgifter fra funktion 4.10.01, 4.10.02 og 4.10.04",null,null,null,null,0,""]
["Ikke fordelte udgifter i Region Syddanmark, psykiatri","Skema 6.35: Øvrige udgifter, Region Sjælland",null,null,null,null,0,""]
["Ikke fordelte udgifter i Region Syddanmark, psykiatri","Skema 6.36: Sundhedsydelser ifm. specialsektor",null,null,null,null,0,""]
["Ikke fordelte udgifter i Region Syddanmark, psykiatri","Skema 6.37: Udgifter til primær sundhed fra skema 2",null,null,null,null,0,""]
["Ikke fordelte udgifter i Region Syddanmark, psykiatri","Skema 6.38: Udgifter til primær sundhed fra skema 3",null,null,null,null,0,""]
["Ikke fordelte udgifter i Region Syddanmark, psykiatri","Skema 6.39: Særlige udgifter ifm. COVID-19",null,null,null,null,0,""]
["Ikke fordelte udgifter i Region Syddanmark, psykiatri","Skema 6.40: Udleveret udstyr/tilbehør ifm. cochlear implantater",null,null,null,null,0,""]
["Ikke fordelte udgifter i Region Syddanmark, psykiatri","Skema 6.41: Luxturna-behandling, Rigshospitalet",null,null,null,null,0,""]
["Ikke fordelte udgifter i Region Syddanmark, psykiatri","Skema 6.42: Udleveret medicin",null,null,null,null,0,""]
["Ikke fordelte udgifter i Region Syddanmark, psykiatri","Skema 6.43: Udgifter ifm. sundhedsklynger",null,null,null,null,0,""]
["Ikke fordelte udgifter i Region Syddanmark, psykiatri","Skema 6.44: Ukrainske patienter under særlov eller asyl",null,null,null,null,0,""]
["Ikke fordelte udgifter i Region Syddanmark, psykiatri","Skema 6.45: Udgifter ifm. de særlige pladser i psykiatrien",null,null,null,null,0,""]
["Ikke fordelte udgifter i Region Syddanmark, psykiatri","Skema 6.46: Sikringsafdelingen, Region Sjælland",null,null,null,null,0,""]
["Ikke fordelte udgifter i Region Syddanmark, psykiatri","Skema 6.47: Øvrige (Kan kun benyttes efter aftale med Sundhedsdatastyrelsen)",null,null,null,null,0,""]
["Ikke fordelte udgifter i Region Syddanmark, psykiatri","Lukkede poster (må kun bruges af Sundhedsdatastyrelsen)",null,null,null,null,0,""]
["Ikke fordelte udgifter i Region Syddanmark, psykiatri","I alt",{"$f":"SUMIFS((C7:C154),(A7:A154),A155)","v":25632},{"$f":"SUMIFS((D7:D154),(A7:A154),A155)","v":23505},{"$f":"SUMIFS((E7:E154),(A7:A154),A155)","v":23560},{"$f":"SUMIFS((F7:F154),(A7:A154),A155)","v":21883},2127,"9,0%▲"]

{"sheet":"Skema 7","index":6,"n_rows":12,"n_cols":13,"rows_kept":12,"cut":false,"hidden":false,"merged":[[4,1,4,2],[1,1,2,8],[4,4,4,5],[4,7,4,8],[4,10,4,11]]}
["Region Syddanmark, psykiatriske sygehuse."]
[null,"Skema 7: Vederlagsfrie ydelser mellem sygehusene. (1.000 kr.)"]
[]
[]
["Sygehus",2023,null,2023,2022,null,2022,2021,null,2021,2020,null,2020]
[null,"Leverede","Modtagne","Lev. - Mod.","Leverede","Modtagne","Lev. - Mod.","Leverede","Modtagne","Lev. - Mod.","Leverede","Modtagne","Lev. - Mod."]
["Region Syddanmark. Voksen psykiatrien",null,14203,{"$f":"$B$7-$C$7","v":-14203},null,14036,{"$f":"$E$7-$F$7","v":-14036},null,13913,{"$f":"$H$7-$I$7","v":-13913},null,13703,{"$f":"$K$7-$L$7","v":-13703}]
["Region Syddanmark. Børn-unge psykiatrien",null,2782,{"$f":"$B$8-$C$8","v":-2782},null,2815,{"$f":"$E$8-$F$8","v":-2815},null,2770,{"$f":"$H$8-$I$8","v":-2770},null,2738,{"$f":"$K$8-$L$8","v":-2738}]
["Ikke fordelte udgifter i Region Syddanmark, psykiatri",null,null,{"$f":"$B$9-$C$9","v":0},null,null,{"$f":"$E$9-$F$9","v":0},null,null,{"$f":"$H$9-$I$9","v":0},null,null,{"$f":"$K$9-$L$9","v":0}]
["I alt",{"$f":"SUM(B7:B9)","v":0},{"$f":"SUM(C7:C9)","v":16985},{"$f":"SUM(D7:D9)","v":-16985},{"$f":"SUM(E7:E9)","v":0},16851,-16851,0,16683,-16683,{"$f":"SUM(K7:K9)","v":0},{"$f":"SUM(L7:L9)","v":16441},-16441]
[]
["NB: Afstem med somatikken"]

{"sheet":"Rapport","index":7,"n_rows":99,"n_cols":6,"rows_kept":99,"cut":false,"hidden":false,"merged":[]}
[]
[null,"Skema 1: Udgifter og indtægter på sygehusene/enhederne, eksklusiv omkostningssted 0001, Fælleskonto. (1.000 kr.)"]
[null,null,2023,2022,2021,2020]
[null,"Hovedart 1: Lønninger",1793224,1745686,1677386,1593471]
[null,"Hovedart 2: Varekøb",70698,62958,65718,74925]
[null,"Hovedart 4: Tjenesteydelser m.v. ",467783,459815,436714,396653]
[null,"Hovedart 5: Tilskud og overførsler",24677,3151,7057,8450]
[null,"Hovedart 6: Finansudgifter",0,0,0,0]
[null,"Hovedart 7: Indtægter",-209220,-190176,-199547,-195744]
[null,"Hovedart 8: Finansindtægter",0,-12,-3,0]
[null,"Hovedart 9: Interne udgifter og indtægter",0,0,0,0]
[null,"I alt",2147162,2081422,1987325,1877755]
[]
[null,"Skema 2: Fællesudgifter og -indtægter vedrørende sygehusene.\n(1.000 kr.)"]
[null,null,2023,2022,2021,2020]
[null,"Hovedart 1: Lønninger",8982,18852,15507,19905]
[null,"Hovedart 2: Varekøb",3478,-819,2938,5461]
[null,"Hovedart 4: Tjenesteydelser m.v. ",70824,59658,63136,53802]
[null,"Hovedart 5: Tilskud og overførsler",0,0,0,0]
[null,"Hovedart 6: Finansudgifter",0,0,0,0]
[null,"Hovedart 7: Indtægter",-19351,-11856,-4937,-8030]
[null,"Hovedart 8: Finansindtægter",-62,-78,0,0]
[null,"Hovedart 9: Interne udgifter og indtægter",0,0,0,0]
[null,"I alt",63871,65757,76644,71138]
[]
[null,"Skema 3:Regionale fællesudgifter og -indtægter. (1.000 kr.)"]
[null,null,2023,2022,2021,2020]
[null,"1.70.50: Andel af fællesudgifter",40493,38481,34396,31921]
[null,"1.60.40: Andel af central administration af sundhed (til og med 2019)",10094,9983,9764,8594]
[null,"1.60.41: Andel af øvrige udgifter og indtægter",0,0,0,0]
[null,"1.50.33: Andel af central administration af sundhed (ekskl. psykiatri)",0,0,0,0]
[null,"1.50.35: Administration af det psykiatriske område (kun central del)",0,0,0,0]
[null,"I alt",50587,48464,44160,40515]
[]
[null,"Skema 4: Udgifter og indtægter til og fra psykiatriske afdelinger konteret på somatiske sygehuse. (1.000 kr.)"]
[null,null,2023,2022,2021,2020]
[null,"Korrektion",0,0,0,0]
[null,"Lønudg. på psyk. afd.,somatiske sygehuse",0,0,0,0]
[null,"Øvrige udg. til psyk. afd.,somatiske sygehuse",0,0,0,0]
[null,"I alt",0,0,0,0]
[]
[null,"Skema 5: Leasing- og huslejeudgifter. (1.000 kr.)"]
[null,null,2023,2022,2021,2020]
[null,"Andre udgifter",0,0,0,0]
[null,"Leasing- og lejeudgifter",112,125,162,156]
[null,"Huslejeudgifter",41794,35866,41200,41026]
[null,"I alt",41906,35991,41362,41182]
[]
[null,"Skema 6: Udgifter til andet end patientbehandling. (1.000 kr.)"]
[null,null,2023,2022,2021,2020]
[null,"Skema 6.1: Center for voldsramte (Bispebjerg)",0,0,0,0]
[null,"Skema 6.2: Ventilatørbistand i hjemmet, respiratorpatienter",0,0,0,0]
[null,"Skema 6.3: Blodprøvetagning i eget hjem",0,0,0,0]
[null,"Skema 6.4: Psykinfo + pårørende",11004,9243,9475,7994]
[null,"Skema 6.5: Leveret udstyr til patienter i eget hjem, ilt og sonderemedier",0,0,0,0]
[null,"Skema 6.6: Montebello (Nordsjællands Hospitaler)",0,0,0,0]
[null,"Skema 6.7: Satspulje korrektioner mellem år",0,0,0,0]
[null,"Skema 6.8: Klinisk farmakologisk rådgivning af praksissektoren",0,0,0,0]
[null,"Skema 6.9: Tandregulering ifm. operation",0,0,0,0]
[null,"Skema 6.10: Giftlinjen",0,0,0,0]
[null,"Skema 6.11: Tjenestemandspensioner",0,0,0,0]
[null,"Skema 6.12: Art 4.6 Betalinger til staten",0,0,0,0]
[null,"Skema 6.13: Art 4.7 Betalinger til kommuner",0,0,0,0]
[null,"Skema 6.14: Art 4.8 Betalinger til andre regioner",5329,37099,40549,35084]
[null,"Skema 6.15: Art 7.6 Betalinger fra staten",0,0,0,0]
[null,"Skema 6.16: Art 7.7 Betalinger fra kommuner",-34479,-6309,-4473,-8098]
[null,"Skema 6.17: Art 7.8 Betalinger fra andre regioner",-16283,-18252,-12053,-12406]
[null,"Skema 6.18: Betalinger til selvejende, private og udenlandske sygehuse",14628,14262,14085,13889]
[null,"Skema 6.19: Dækningsafgift/ejendomsskat",3011,3003,2959,2883]
[null,"Skema 6.20: Forsikringer/erstatninger",8807,8426,8388,9893]
[null,"Skema 6.21: Vederlagsfri Lab. –ydelser og andre ydelser til praksissektoren",0,0,0,0]
[null,"Skema 6.22: Patienttransport",2583,2444,2478,1709]
[null,"Skema 6.23: Serviceydelser til/fra andre institutioner eller sygehuse udenfor regionen",0,0,0,0]
[null,"Skema 6.24: Udgifter til eksternt finansierede forskning",33,-18,-74,-55]
[null,"Skema 6.25: Forebyggelse rettet mod praksissektoren og kommuner",0,0,0,0]
[null,"Skema 6.26: Praksisreservelæger",0,0,0,0]
[null,"Skema 6.27: Præhospital",0,0,0,0]
[null,"Skema 6.28: Udgifter til Danske Regioner (Kontigent, MedCom, Fællesproj.)",0,0,0,0]
[null,"Skema 6.29: Hospice",0,0,0,0]
[null,"Skema 6.30: Konsulenter(Praksis)",891,678,501,509]
[null,"Skema 6.31: Videnskabsetisk Komité",0,0,0,0]
[null,"Skema 6.32: Tolkebistand",125,183,220,511]
[null,"Skema 6.33: Dansk Center for Partikelterapi",0,0,0,0]
[null,"Skema 6.34: Politisk organisation – overførte udgifter fra funktion 4.10.01, 4.10.02 og 4.10.04",0,0,0,0]
[null,"Skema 6.35: Øvrige udgifter, Region Sjælland",0,0,0,0]
[null,"Skema 6.36: Sundhedsydelser ifm. specialsektor",0,0,0,0]
[null,"Skema 6.37: Udgifter til primær sundhed fra skema 2",0,0,0,0]
[null,"Skema 6.38: Udgifter til primær sundhed fra skema 3",0,0,0,0]
[null,"Skema 6.39: Særlige udgifter ifm. COVID-19",0,0,0,0]
[null,"Skema 6.40: Udleveret udstyr/tilbehør ifm. cochlear implantater",0,0,0,0]
[null,"Skema 6.41: Luxturna-behandling, Rigshospitalet",0,0,0,0]
[null,"Skema 6.42: Udleveret medicin",9211,9720,8968,0]
[null,"Skema 6.43: Udgifter ifm. sundhedsklynger",0,0,0,0]
[null,"Skema 6.44: Ukrainske patienter under særlov eller asyl",0,0,0,0]
[null,"Skema 6.45: Udgifter ifm. de særlige pladser i psykiatrien",43398,0,0,0]
[null,"Skema 6.46: Sikringsafdelingen, Region Sjælland",22460,0,0,0]
[null,"Skema 6.47: Øvrige (Kan kun benyttes efter aftale med Sundhedsdatastyrelsen)",0,0,0,0]
[null,"Lukkede poster (må kun bruges af Sundhedsdatastyrelsen)",0,0,0,0]
[null,"I alt",70718,60479,71023,51913]

{"sheet":"Rapport SGH","index":8,"n_rows":9,"n_cols":9,"rows_kept":9,"cut":false,"hidden":false,"merged":[]}
[2023,"Skema 1","Skema 2","Skema 3","Skema 4","Skema 5","Skema 6","Skema 7","I alt"]
["Region Syddanmark, Voksen psykiatrien",1788804,41177,42292,0,34942,49781,-14203,{"$f":"SUM(B2:D2)-SUM(E2:H2)","v":1801753}]
["Region Syddanmark, Børn-unge psykiatrien",347354,8066,8295,0,6964,-4695,-2782,{"$f":"SUM(B3:D3)-SUM(E3:H3)","v":364228}]
["Ikke fordelte udgifter i Region Syddanmark, psykiatri",11004,14628,0,0,0,25632,0,0]
[]
[2022]
["Region Syddanmark, Voksen psykiatrien",1717597,42895,40370,0,29846,34492,-14036,{"$f":"SUM(B7:D7)-SUM(E7:H7)","v":1750560}]
["Region Syddanmark, Børn-unge psykiatrien",354582,8600,8094,0,6145,2482,-2815,{"$f":"SUM(B8:D8)-SUM(E8:H8)","v":365464}]
["Ikke fordelte udgifter i Region Syddanmark, psykiatri",9243,14262,0,0,0,23505,0,{"$f":"SUM(B9:D9)-SUM(E9:H9)","v":0}]

{"sheet":"Afstemning af ikke fordelte","index":9,"n_rows":9,"n_cols":2,"rows_kept":9,"cut":false,"hidden":false,"merged":[]}
["Afstemning af Ikke fordelte indtægter- og udgifter"]
["1.000 kr.","2023"]
["Skema 1",11004]
["Skema 2",14628]
["Skema 3",0]
["Skema 4",0]
["Skema 5",0]
["Skema 6",25632]
["1+2+3-4-5-6",{"$f":"+B3+B4+B5-B6-B7-B8","v":0}]